[Event "Titled Tuesday Blitz June 27 Late 2023"]
[White "Naroditsky, Daniel"]
[Black "Holt, Conrad"]
[WhiteFideId "2026961"]
[BlackFideId "2034387"]
[WhiteElo "3100"]
[BlackElo "2874"]
[Result "1/2-1/2"]
[Round "5"]
[TimeControl "180+2"]
[Date "2023.06.27"]
[WhiteClock "0:00:07"]
[BlackClock "0:00:11"]
[Board "9"]

1. d4 {[%clk 0:03:00]}  d5 {[%clk 0:02:57]} 2. Nc3 {[%clk 0:03:01]}  Nf6 {[%clk 0:02:57]} 3. Bf4 {[%clk 0:03:01]}  Nh5 {[%clk 0:02:54]} 4. Bg5 {[%clk 0:02:52]}  h6 {[%clk 0:02:53]} 5. Bh4 {[%clk 0:02:52]}  g5 {[%clk 0:02:46]} 6. e3 {[%clk 0:02:31]}  Nf6 {[%clk 0:02:34]} 7. Bg3 {[%clk 0:02:31]}  Bf5 {[%clk 0:02:31]} 8. Bd3 {[%clk 0:02:30]}  e6 {[%clk 0:02:27]} 9. Nf3 {[%clk 0:02:22]}  Ne4 {[%clk 0:02:23]} 10. Bxe4 {[%clk 0:02:16]}  dxe4 {[%clk 0:02:19]} 11. Nd2 {[%clk 0:02:16]}  Bb4 {[%clk 0:02:19]} 12. Qe2 {[%clk 0:02:12]}  Nc6 {[%clk 0:02:12]} 13. O-O {[%clk 0:02:02]}  Bxc3 {[%clk 0:02:08]} 14. bxc3 {[%clk 0:02:03]}  h5 {[%clk 0:02:03]} 15. f3 {[%clk 0:01:36]}  exf3 {[%clk 0:02:03]} 16. Qxf3 {[%clk 0:01:36]}  h4 {[%clk 0:02:03]} 17. e4 {[%clk 0:01:20]}  hxg3 {[%clk 0:02:03]} 18. exf5 {[%clk 0:01:20]}  Nxd4 {[%clk 0:02:04]} 19. Qe3 {[%clk 0:00:38]}  Nxc2 {[%clk 0:01:40]} 20. Qe5 {[%clk 0:00:38]}  f6 {[%clk 0:01:39]} 21. Qxe6+ {[%clk 0:00:38]}  Kf8 {[%clk 0:01:39]} 22. Rad1 {[%clk 0:00:34]}  Qe7 {[%clk 0:01:19]} 23. Qxe7+ {[%clk 0:00:25]}  Kxe7 {[%clk 0:01:18]} 24. hxg3 {[%clk 0:00:25]}  Rad8 {[%clk 0:01:15]} 25. Nc4 {[%clk 0:00:22]}  b5 {[%clk 0:01:11]} 26. Na5 {[%clk 0:00:19]}  Rd6 {[%clk 0:01:01]} 27. Rc1 {[%clk 0:00:20]}  Na3 {[%clk 0:00:58]} 28. Nb3 {[%clk 0:00:20]}  Kf7 {[%clk 0:00:41]} 29. Rfe1 {[%clk 0:00:16]}  Re8 {[%clk 0:00:36]} 30. Rxe8 {[%clk 0:00:17]}  Kxe8 {[%clk 0:00:36]} 31. Kf2 {[%clk 0:00:14]}  Rd3 {[%clk 0:00:31]} 32. Nc5 {[%clk 0:00:09]}  Rd5 {[%clk 0:00:29]} 33. Ne6 {[%clk 0:00:04]}  Rxf5+ {[%clk 0:00:29]} 34. Kg1 {[%clk 0:00:05]}  Kd7 {[%clk 0:00:27]} 35. Nd4 {[%clk 0:00:04]}  Rc5 {[%clk 0:00:25]} 36. Nb3 {[%clk 0:00:05]}  Rd5 {[%clk 0:00:25]} 37. Rf1 {[%clk 0:00:05]}  Ke7 {[%clk 0:00:25]} 38. Nd4 {[%clk 0:00:05]}  a6 {[%clk 0:00:21]} 39. Nf5+ {[%clk 0:00:04]}  Kf7 {[%clk 0:00:20]} 40. g4 {[%clk 0:00:05]}  Nc4 {[%clk 0:00:18]} 41. Nh6+ {[%clk 0:00:03]}  Kg6 {[%clk 0:00:18]} 42. Ng8 {[%clk 0:00:03]}  Rd6 {[%clk 0:00:18]} 43. Ne7+ {[%clk 0:00:03]}  Kf7 {[%clk 0:00:19]} 44. Nf5 {[%clk 0:00:04]}  Rd7 {[%clk 0:00:18]} 45. Re1 {[%clk 0:00:03]}  Ne5 {[%clk 0:00:18]} 46. Re4 {[%clk 0:00:03]}  Rd1+ {[%clk 0:00:18]} 47. Kh2 {[%clk 0:00:04]}  Rd2 {[%clk 0:00:17]} 48. a4 {[%clk 0:00:04]}  c5 {[%clk 0:00:17]} 49. axb5 {[%clk 0:00:04]}  axb5 {[%clk 0:00:18]} 50. Kg3 {[%clk 0:00:03]}  Rd3+ {[%clk 0:00:17]} 51. Kh2 {[%clk 0:00:03]}  Rxc3 {[%clk 0:00:18]} 52. Nd6+ {[%clk 0:00:04]}  Ke6 {[%clk 0:00:17]} 53. Nxb5 {[%clk 0:00:05]}  Rc4 {[%clk 0:00:17]} 54. Nc7+ {[%clk 0:00:03]}  Kd7 {[%clk 0:00:16]} 55. Nd5 {[%clk 0:00:02]}  Ke6 {[%clk 0:00:13]} 56. Nc7+ {[%clk 0:00:03]}  Kf7 {[%clk 0:00:13]} 57. Rxc4 {[%clk 0:00:02]}  Nxc4 {[%clk 0:00:13]} 58. Na6 {[%clk 0:00:03]}  Ne5 {[%clk 0:00:13]} 59. Nxc5 {[%clk 0:00:04]}  Nxg4+ {[%clk 0:00:14]} 60. Kg3 {[%clk 0:00:05]}  Nh6 {[%clk 0:00:14]} 61. Ne4 {[%clk 0:00:05]}  Kg6 {[%clk 0:00:14]} 62. Kf3 {[%clk 0:00:05]}  Kf5 {[%clk 0:00:13]} 63. Nd6+ {[%clk 0:00:04]}  Ke6 {[%clk 0:00:14]} 64. Ne4 {[%clk 0:00:04]}  Nf7 {[%clk 0:00:14]} 65. Nc5+ {[%clk 0:00:05]}  Kd5 {[%clk 0:00:13]} 66. Na4 {[%clk 0:00:04]}  Ne5+ {[%clk 0:00:13]} 67. Kf2 {[%clk 0:00:04]}  Kd4 {[%clk 0:00:14]} 68. Nb6 {[%clk 0:00:04]}  f5 {[%clk 0:00:12]} 69. Nc8 {[%clk 0:00:04]}  Nd3+ {[%clk 0:00:11]} 70. Ke2 {[%clk 0:00:04]}  Nf4+ {[%clk 0:00:11]} 71. Kf3 {[%clk 0:00:05]}  Ke5 {[%clk 0:00:12]} 72. Ne7 {[%clk 0:00:04]}  Ne6 {[%clk 0:00:11]} 73. Nc6+ {[%clk 0:00:03]}  Kd6 {[%clk 0:00:11]} 74. Nb4 {[%clk 0:00:04]}  Nd4+ {[%clk 0:00:11]} 75. Kf2 {[%clk 0:00:04]}  Ke5 {[%clk 0:00:11]} 76. Nd3+ {[%clk 0:00:05]}  Ke4 {[%clk 0:00:11]} 77. Nc5+ {[%clk 0:00:05]}  Kd5 {[%clk 0:00:12]} 78. Nd3 {[%clk 0:00:06]}  Ne6 {[%clk 0:00:12]} 79. Nb4+ {[%clk 0:00:06]}  Kd4 {[%clk 0:00:12]} 80. Nc6+ {[%clk 0:00:06]}  Ke4 {[%clk 0:00:13]} 81. g3 {[%clk 0:00:04]}  Nc5 {[%clk 0:00:13]} 82. Kg2 {[%clk 0:00:03]}  Nd3 {[%clk 0:00:13]} 83. Nd8 {[%clk 0:00:03]}  Ne1+ {[%clk 0:00:13]} 84. Kf2 {[%clk 0:00:03]}  Nd3+ {[%clk 0:00:13]} 85. Ke2 {[%clk 0:00:04]}  Ne5 {[%clk 0:00:13]} 86. Ne6 {[%clk 0:00:05]}  Nf7 {[%clk 0:00:13]} 87. Nc5+ {[%clk 0:00:04]}  Kd5 {[%clk 0:00:13]} 88. Nd3 {[%clk 0:00:04]}  Kd4 {[%clk 0:00:14]} 89. Ne1 {[%clk 0:00:03]}  Ke4 {[%clk 0:00:13]} 90. Nf3 {[%clk 0:00:03]}  g4 {[%clk 0:00:13]} 91. Nd2+ {[%clk 0:00:03]}  Kd4 {[%clk 0:00:13]} 92. Nb3+ {[%clk 0:00:04]}  Kc3 {[%clk 0:00:11]} 93. Nc5 {[%clk 0:00:05]}  Kd4 {[%clk 0:00:10]} 94. Ne6+ {[%clk 0:00:05]}  Ke5 {[%clk 0:00:10]} 95. Nf4 {[%clk 0:00:05]}  Ng5 {[%clk 0:00:11]} 96. Ke3 {[%clk 0:00:05]}  Ne4 {[%clk 0:00:11]} 97. Nd3+ {[%clk 0:00:05]}  Kf6 {[%clk 0:00:10]} 98. Kf4 {[%clk 0:00:06]}  Nc3 {[%clk 0:00:11]} 99. Ke3 {[%clk 0:00:05]}  Nd5+ {[%clk 0:00:10]} 100. Kf2 {[%clk 0:00:05]}  Kg5 {[%clk 0:00:10]} 101. Nc5 {[%clk 0:00:05]}  Nc3 {[%clk 0:00:10]} 102. Ne6+ {[%clk 0:00:05]}  Kf6 {[%clk 0:00:10]} 103. Nd4 {[%clk 0:00:05]}  Ne4+ {[%clk 0:00:11]} 104. Kg2 {[%clk 0:00:05]}  Ke5 {[%clk 0:00:11]} 105. Nc6+ {[%clk 0:00:06]}  Kd6 {[%clk 0:00:11]} 106. Nd4 {[%clk 0:00:06]}  Ke5 {[%clk 0:00:10]} 107. Nc6+ {[%clk 0:00:07]}  Kf6 {[%clk 0:00:11]} 108. Nd4 {[%clk 0:00:07]}  Nc5 {[%clk 0:00:10]} 109. Kf2 {[%clk 0:00:06]}  Ke5 {[%clk 0:00:11]} 110. Nc6+ {[%clk 0:00:07]}  Kd5 {[%clk 0:00:11]} 111. Ne7+ {[%clk 0:00:07]}  Ke6 {[%clk 0:00:11]} 112. Nc6 {[%clk 0:00:07]}  Kd6 {[%clk 0:00:11]} 113. Nd4 {[%clk 0:00:07]}  Ne4+ {[%clk 0:00:11]} 114. Kg2 {[%clk 0:00:07]}  Ke5 {[%clk 0:00:11]} 1/2-1/2


[Site "https://www.chess.com"]

[Event "Titled Tuesday Blitz June 27 Late 2023"]
[White "Barp, Alberto"]
[Black "Pranesh M"]
[WhiteFideId "872555"]
[BlackFideId "35028600"]
[WhiteElo "2720"]
[BlackElo "3022"]
[Result "0-1"]
[Round "5"]
[TimeControl "180+2"]
[Date "2023.06.27"]
[WhiteClock "0:00:04"]
[BlackClock "0:01:14"]
[Board "16"]

1. d4 {[%clk 0:02:54]}  Nf6 {[%clk 0:03:00]} 2. c4 {[%clk 0:02:47]}  b6 {[%clk 0:03:00]} 3. f3 {[%clk 0:02:44]}  Nc6 {[%clk 0:03:00]} 4. Nc3 {[%clk 0:02:44]}  Bb7 {[%clk 0:02:59]} 5. e4 {[%clk 0:02:42]}  e5 {[%clk 0:02:59]} 6. dxe5 {[%clk 0:02:35]}  Nxe5 {[%clk 0:03:00]} 7. Be3 {[%clk 0:02:32]}  Bb4 {[%clk 0:03:00]} 8. Qb3 {[%clk 0:02:30]}  Qe7 {[%clk 0:02:58]} 9. a3 {[%clk 0:02:29]}  Bc5 {[%clk 0:02:59]} 10. Nb5 {[%clk 0:02:24]}  O-O {[%clk 0:02:54]} 11. Nxc7 {[%clk 0:02:18]}  Rac8 {[%clk 0:02:52]} 12. Nb5 {[%clk 0:01:49]}  Bxe4 {[%clk 0:02:51]} 13. fxe4 {[%clk 0:01:44]}  Neg4 {[%clk 0:02:51]} 14. Bxc5 {[%clk 0:01:37]}  Qxc5 {[%clk 0:02:52]} 15. Nh3 {[%clk 0:01:31]}  a6 {[%clk 0:02:45]} 16. Nc3 {[%clk 0:01:29]}  Qe3+ {[%clk 0:02:37]} 17. Be2 {[%clk 0:01:28]}  Nxe4 {[%clk 0:02:35]} 18. Qc2 {[%clk 0:01:25]}  Nef2 {[%clk 0:02:26]} 19. Nd5 {[%clk 0:01:18]}  Qc5 {[%clk 0:02:17]} 20. Rf1 {[%clk 0:01:13]}  Nxh3 {[%clk 0:02:08]} 21. gxh3 {[%clk 0:00:54]}  Nxh2 {[%clk 0:02:08]} 22. Rf2 {[%clk 0:00:44]}  Qxd5 {[%clk 0:01:55]} 23. cxd5 {[%clk 0:00:39]}  Rxc2 {[%clk 0:01:56]} 24. Rxh2 {[%clk 0:00:39]}  Rxb2 {[%clk 0:01:55]} 25. Rf2 {[%clk 0:00:25]}  b5 {[%clk 0:01:50]} 26. Bg4 {[%clk 0:00:24]}  Rxf2 {[%clk 0:01:46]} 27. Kxf2 {[%clk 0:00:24]}  f5 {[%clk 0:01:47]} 28. Be2 {[%clk 0:00:22]}  Rc8 {[%clk 0:01:47]} 29. Bd3 {[%clk 0:00:20]}  g6 {[%clk 0:01:46]} 30. Ke3 {[%clk 0:00:21]}  Kf7 {[%clk 0:01:44]} 31. Kd4 {[%clk 0:00:21]}  Kf6 {[%clk 0:01:43]} 32. a4 {[%clk 0:00:22]}  d6 {[%clk 0:01:35]} 33. axb5 {[%clk 0:00:21]}  axb5 {[%clk 0:01:36]} 34. Ra6 {[%clk 0:00:21]}  Ke7 {[%clk 0:01:35]} 35. Ra7+ {[%clk 0:00:22]}  Kf6 {[%clk 0:01:36]} 36. Rxh7 {[%clk 0:00:22]}  Ra8 {[%clk 0:01:34]} 37. Rd7 {[%clk 0:00:21]}  Ra4+ {[%clk 0:01:34]} 38. Kc3 {[%clk 0:00:21]}  Ke5 {[%clk 0:01:35]} 39. Bxb5 {[%clk 0:00:21]}  Rh4 {[%clk 0:01:35]} 40. Bc6 {[%clk 0:00:20]}  Rxh3+ {[%clk 0:01:35]} 41. Kc4 {[%clk 0:00:20]}  Rh4+ {[%clk 0:01:36]} 42. Kd3 {[%clk 0:00:18]}  Rh3+ {[%clk 0:01:35]} 43. Ke2 {[%clk 0:00:18]}  g5 {[%clk 0:01:33]} 44. Re7+ {[%clk 0:00:19]}  Kd4 {[%clk 0:01:30]} 45. Bd7 {[%clk 0:00:14]}  Rh2+ {[%clk 0:01:27]} 46. Kf1 {[%clk 0:00:14]}  f4 {[%clk 0:01:26]} 47. Rg7 {[%clk 0:00:10]}  Kxd5 {[%clk 0:01:17]} 48. Rxg5+ {[%clk 0:00:09]}  Kd4 {[%clk 0:01:17]} 49. Bc6 {[%clk 0:00:08]}  Ke3 {[%clk 0:01:17]} 50. Rg2 {[%clk 0:00:06]}  Rh1+ {[%clk 0:01:16]} 51. Rg1 {[%clk 0:00:06]}  Rh7 {[%clk 0:01:15]} 52. Kg2 {[%clk 0:00:06]}  f3+ {[%clk 0:01:13]} 53. Kf1 {[%clk 0:00:04]}  Rc7 {[%clk 0:01:13]} 54. Bxf3 {[%clk 0:00:03]}  Rc1+ {[%clk 0:01:11]} 55. Kg2 {[%clk 0:00:02]}  Rxg1+ {[%clk 0:01:12]} 56. Kxg1 {[%clk 0:00:03]}  Kxf3 {[%clk 0:01:13]} 57. Kf1 {[%clk 0:00:03]}  Ke3 {[%clk 0:01:13]} 58. Ke1 {[%clk 0:00:04]}  Kd3 {[%clk 0:01:13]} 59. Kd1 {[%clk 0:00:04]}  d5 {[%clk 0:01:14]} 0-1


[Site "https://www.chess.com"]

[Event "Titled Tuesday Blitz June 27 Late 2023"]
[White "Makridis, Dimitrios"]
[Black "Kamsky, Gata"]
[WhiteFideId "25864475"]
[BlackFideId "2000024"]
[WhiteElo "2717"]
[BlackElo "3020"]
[Result "1-0"]
[Round "5"]
[TimeControl "180+2"]
[Date "2023.06.27"]
[WhiteClock "0:00:03"]
[BlackClock "0:00:00"]
[Board "17"]

1. e4 {[%clk 0:03:00]}  c5 {[%clk 0:02:55]} 2. Nf3 {[%clk 0:02:58]}  Nc6 {[%clk 0:02:55]} 3. Bb5 {[%clk 0:02:58]}  g6 {[%clk 0:02:54]} 4. O-O {[%clk 0:02:58]}  Bg7 {[%clk 0:02:55]} 5. c3 {[%clk 0:02:55]}  Nf6 {[%clk 0:02:54]} 6. Re1 {[%clk 0:02:55]}  Qb6 {[%clk 0:02:50]} 7. Na3 {[%clk 0:02:30]}  O-O {[%clk 0:02:49]} 8. Bf1 {[%clk 0:02:17]}  d6 {[%clk 0:02:43]} 9. h3 {[%clk 0:02:10]}  e5 {[%clk 0:02:37]} 10. Nc4 {[%clk 0:02:09]}  Qc7 {[%clk 0:02:37]} 11. d4 {[%clk 0:01:53]}  h6 {[%clk 0:01:55]} 12. d5 {[%clk 0:01:49]}  Nb8 {[%clk 0:01:52]} 13. b4 {[%clk 0:01:50]}  Nbd7 {[%clk 0:01:51]} 14. a4 {[%clk 0:01:47]}  b6 {[%clk 0:01:47]} 15. Nfd2 {[%clk 0:01:45]}  Nh5 {[%clk 0:01:34]} 16. b5 {[%clk 0:01:42]}  a5 {[%clk 0:01:32]} 17. bxa6 {[%clk 0:01:38]}  Rxa6 {[%clk 0:01:24]} 18. Ne3 {[%clk 0:01:35]}  Ra8 {[%clk 0:01:22]} 19. Ndc4 {[%clk 0:01:33]}  Ba6 {[%clk 0:01:13]} 20. Rb1 {[%clk 0:01:31]}  Nhf6 {[%clk 0:01:10]} 21. f3 {[%clk 0:01:29]}  Nh5 {[%clk 0:01:09]} 22. Na3 {[%clk 0:01:30]}  Bxf1 {[%clk 0:01:07]} 23. Rxf1 {[%clk 0:01:31]}  Rfd8 {[%clk 0:01:00]} 24. Nb5 {[%clk 0:01:31]}  Qb8 {[%clk 0:01:00]} 25. Nc4 {[%clk 0:01:31]}  Bf8 {[%clk 0:00:59]} 26. a5 {[%clk 0:01:26]}  bxa5 {[%clk 0:00:58]} 27. Be3 {[%clk 0:01:02]}  Nb6 {[%clk 0:00:46]} 28. Nba3 {[%clk 0:00:29]}  Nxc4 {[%clk 0:00:46]} 29. Rxb8 {[%clk 0:00:29]}  Nxe3 {[%clk 0:00:46]} 30. Rxa8 {[%clk 0:00:24]}  Rxa8 {[%clk 0:00:46]} 31. Qa4 {[%clk 0:00:22]}  Nxf1 {[%clk 0:00:46]} 32. Kxf1 {[%clk 0:00:23]}  Rb8 {[%clk 0:00:46]} 33. Nb5 {[%clk 0:00:23]}  Be7 {[%clk 0:00:39]} 34. Qxa5 {[%clk 0:00:20]}  Rd8 {[%clk 0:00:26]} 35. Qc7 {[%clk 0:00:18]}  Kf8 {[%clk 0:00:26]} 36. c4 {[%clk 0:00:18]}  Nf4 {[%clk 0:00:24]} 37. Na7 {[%clk 0:00:17]}  Ra8 {[%clk 0:00:23]} 38. Qb7 {[%clk 0:00:17]}  Re8 {[%clk 0:00:22]} 39. Nc6 {[%clk 0:00:16]}  Bh4 {[%clk 0:00:21]} 40. Nb8 {[%clk 0:00:08]}  Kg7 {[%clk 0:00:21]} 41. Kg1 {[%clk 0:00:08]}  Re7 {[%clk 0:00:19]} 42. Qb6 {[%clk 0:00:06]}  Ne2+ {[%clk 0:00:17]} 43. Kf1 {[%clk 0:00:06]}  Ng3+ {[%clk 0:00:17]} 44. Kg1 {[%clk 0:00:06]}  Ne2+ {[%clk 0:00:17]} 45. Kh2 {[%clk 0:00:06]}  Bg3+ {[%clk 0:00:16]} 46. Kh1 {[%clk 0:00:07]}  h5 {[%clk 0:00:16]} 47. Nc6 {[%clk 0:00:05]}  Rd7 {[%clk 0:00:16]} 48. Qb8 {[%clk 0:00:05]}  f5 {[%clk 0:00:15]} 49. Nd8 {[%clk 0:00:05]}  Kh7 {[%clk 0:00:12]} 50. Ne6 {[%clk 0:00:05]}  Re7 {[%clk 0:00:12]} 51. Qf8 {[%clk 0:00:03]}  Bh4 {[%clk 0:00:12]} 52. Qb8 {[%clk 0:00:03]}  fxe4 {[%clk 0:00:11]} 53. fxe4 {[%clk 0:00:02]}  Rf7 {[%clk 0:00:11]} 54. g3 {[%clk 0:00:02]}  Nxg3+ {[%clk 0:00:10]} 55. Kg2 {[%clk 0:00:02]}  Nxe4 {[%clk 0:00:11]} 56. Qe8 {[%clk 0:00:02]}  Rf2+ {[%clk 0:00:10]} 57. Kg1 {[%clk 0:00:03]}  Rf3 {[%clk 0:00:00]} 58. Qd7+ {[%clk 0:00:03]} 1-0


[Site "https://www.chess.com"]

[Event "Titled Tuesday Blitz June 27 Late 2023"]
[White "Yoo, Christopher Woojin"]
[Black "Fisher_TheGalactic"]
[WhiteFideId "30909694"]
[WhiteElo "2974"]
[BlackElo "2698"]
[Result "1-0"]
[Round "5"]
[TimeControl "180+2"]
[Date "2023.06.27"]
[WhiteClock "0:00:10"]
[BlackClock "0:00:01"]
[Board "20"]

1. d4 {[%clk 0:03:00]}  d5 {[%clk 0:02:57]} 2. Nf3 {[%clk 0:02:59]}  Nf6 {[%clk 0:02:56]} 3. c4 {[%clk 0:02:58]}  e6 {[%clk 0:02:55]} 4. g3 {[%clk 0:02:57]}  c6 {[%clk 0:02:51]} 5. Bg2 {[%clk 0:02:49]}  dxc4 {[%clk 0:02:50]} 6. Ne5 {[%clk 0:02:39]}  Bb4+ {[%clk 0:02:44]} 7. Nc3 {[%clk 0:02:27]}  Nd5 {[%clk 0:02:31]} 8. Bd2 {[%clk 0:02:26]}  b5 {[%clk 0:02:17]} 9. a4 {[%clk 0:02:10]}  Bxc3 {[%clk 0:02:14]} 10. bxc3 {[%clk 0:02:09]}  Bb7 {[%clk 0:02:14]} 11. e4 {[%clk 0:01:59]}  Nb6 {[%clk 0:02:13]} 12. Qg4 {[%clk 0:01:49]}  Kf8 {[%clk 0:01:52]} 13. Qh5 {[%clk 0:01:06]}  Qe8 {[%clk 0:01:44]} 14. a5 {[%clk 0:00:55]}  N6d7 {[%clk 0:01:43]} 15. Nxd7+ {[%clk 0:00:52]}  Nxd7 {[%clk 0:01:44]} 16. a6 {[%clk 0:00:52]}  Bc8 {[%clk 0:01:44]} 17. O-O {[%clk 0:00:50]}  Nf6 {[%clk 0:01:42]} 18. Qc5+ {[%clk 0:00:46]}  Kg8 {[%clk 0:01:41]} 19. f4 {[%clk 0:00:45]}  Bd7 {[%clk 0:01:33]} 20. h3 {[%clk 0:00:36]}  Qf8 {[%clk 0:01:32]} 21. Qe5 {[%clk 0:00:33]}  Ne8 {[%clk 0:01:32]} 22. d5 {[%clk 0:00:27]}  f6 {[%clk 0:01:23]} 23. Qd4 {[%clk 0:00:27]}  exd5 {[%clk 0:01:24]} 24. exd5 {[%clk 0:00:27]}  c5 {[%clk 0:01:24]} 25. Qf2 {[%clk 0:00:28]}  Rd8 {[%clk 0:01:15]} 26. Be3 {[%clk 0:00:27]}  Rc8 {[%clk 0:01:12]} 27. d6 {[%clk 0:00:26]}  Qxd6 {[%clk 0:00:52]} 28. Rad1 {[%clk 0:00:24]}  Qc7 {[%clk 0:00:45]} 29. Bb7 {[%clk 0:00:19]}  Bxh3 {[%clk 0:00:41]} 30. Bxc8 {[%clk 0:00:17]}  Qxc8 {[%clk 0:00:41]} 31. Rfe1 {[%clk 0:00:17]}  Kf7 {[%clk 0:00:28]} 32. Bxc5 {[%clk 0:00:17]}  Qxa6 {[%clk 0:00:27]} 33. Re7+ {[%clk 0:00:15]}  Kg6 {[%clk 0:00:27]} 34. Rxa7 {[%clk 0:00:14]}  Qc6 {[%clk 0:00:26]} 35. Kh2 {[%clk 0:00:06]}  Bg4 {[%clk 0:00:25]} 36. Re1 {[%clk 0:00:06]}  h5 {[%clk 0:00:23]} 37. Ree7 {[%clk 0:00:05]}  Qf3 {[%clk 0:00:21]} 38. Qxf3 {[%clk 0:00:05]}  Bxf3 {[%clk 0:00:22]} 39. Rad7 {[%clk 0:00:05]}  Bg4 {[%clk 0:00:19]} 40. Rd8 {[%clk 0:00:05]}  Kf5 {[%clk 0:00:02]} 41. Rdxe8 {[%clk 0:00:05]}  Rh6 {[%clk 0:00:03]} 42. Rxg7 {[%clk 0:00:05]}  h4 {[%clk 0:00:03]} 43. gxh4 {[%clk 0:00:06]}  Rxh4+ {[%clk 0:00:04]} 44. Kg2 {[%clk 0:00:06]}  Rh3 {[%clk 0:00:03]} 45. Rxg4 {[%clk 0:00:05]}  Rxc3 {[%clk 0:00:03]} 46. Rg3 {[%clk 0:00:05]}  Rc2+ {[%clk 0:00:03]} 47. Kf3 {[%clk 0:00:06]}  Rc3+ {[%clk 0:00:02]} 48. Be3 {[%clk 0:00:06]}  b4 {[%clk 0:00:02]} 49. Rb8 {[%clk 0:00:06]}  b3 {[%clk 0:00:02]} 50. Rb5+ {[%clk 0:00:06]}  Ke6 {[%clk 0:00:03]} 51. f5+ {[%clk 0:00:07]}  Kd6 {[%clk 0:00:03]} 52. Ke4 {[%clk 0:00:08]}  Kc6 {[%clk 0:00:03]} 53. Rb6+ {[%clk 0:00:08]}  Kc7 {[%clk 0:00:03]} 54. Rg7+ {[%clk 0:00:09]}  Kc8 {[%clk 0:00:03]} 55. Rxf6 {[%clk 0:00:10]}  Rxe3+ {[%clk 0:00:01]} 56. Kxe3 {[%clk 0:00:10]} 1-0


[Site "https://www.chess.com"]

[Event "Titled Tuesday Blitz June 27 Late 2023"]
[White "Korchmar, Vasiliy"]
[Black "Rasulov, Vugar"]
[WhiteFideId "24131750"]
[BlackFideId "13402390"]
[WhiteElo "2692"]
[BlackElo "2930"]
[Result "0-1"]
[Round "5"]
[TimeControl "180+2"]
[Date "2023.06.27"]
[WhiteClock "0:00:00"]
[BlackClock "0:00:53"]
[Board "21"]

1. e4 {[%clk 0:03:00]}  c5 {[%clk 0:02:57]} 2. d4 {[%clk 0:03:01]}  cxd4 {[%clk 0:02:57]} 3. Qxd4 {[%clk 0:03:02]}  Nc6 {[%clk 0:02:57]} 4. Qd3 {[%clk 0:03:02]}  Nf6 {[%clk 0:02:57]} 5. Nc3 {[%clk 0:03:02]}  g6 {[%clk 0:02:57]} 6. Nf3 {[%clk 0:03:02]}  Bg7 {[%clk 0:02:55]} 7. Be2 {[%clk 0:03:02]}  O-O {[%clk 0:02:55]} 8. O-O {[%clk 0:03:03]}  d6 {[%clk 0:02:53]} 9. Nd5 {[%clk 0:03:04]}  Bg4 {[%clk 0:02:49]} 10. c3 {[%clk 0:03:03]}  Rc8 {[%clk 0:02:47]} 11. Bg5 {[%clk 0:03:03]}  Bxf3 {[%clk 0:02:39]} 12. Qxf3 {[%clk 0:03:02]}  Ne5 {[%clk 0:02:38]} 13. Qh3 {[%clk 0:02:53]}  Nxd5 {[%clk 0:02:30]} 14. exd5 {[%clk 0:02:53]}  Rc5 {[%clk 0:02:25]} 15. Rad1 {[%clk 0:02:46]}  a5 {[%clk 0:02:20]} 16. Rfe1 {[%clk 0:02:34]}  a4 {[%clk 0:02:19]} 17. f4 {[%clk 0:02:30]}  Nd7 {[%clk 0:02:15]} 18. Bg4 {[%clk 0:02:23]}  Nf6 {[%clk 0:02:14]} 19. Bf3 {[%clk 0:02:17]}  Qb6 {[%clk 0:02:00]} 20. Kh1 {[%clk 0:02:17]}  Qxb2 {[%clk 0:02:00]} 21. Rxe7 {[%clk 0:02:15]}  Rxc3 {[%clk 0:02:00]} 22. f5 {[%clk 0:02:02]}  Qxa2 {[%clk 0:01:53]} 23. fxg6 {[%clk 0:01:59]}  hxg6 {[%clk 0:01:53]} 24. Qh4 {[%clk 0:01:51]}  Rc4 {[%clk 0:01:44]} 25. Qg3 {[%clk 0:01:42]}  Qa3 {[%clk 0:01:30]} 26. Rxb7 {[%clk 0:01:34]}  Ne4 {[%clk 0:01:30]} 27. Bxe4 {[%clk 0:01:28]}  Qxg3 {[%clk 0:01:31]} 28. hxg3 {[%clk 0:01:28]}  Rxe4 {[%clk 0:01:32]} 29. Be7 {[%clk 0:01:22]}  Ra8 {[%clk 0:01:26]} 30. Bxd6 {[%clk 0:01:22]}  a3 {[%clk 0:01:26]} 31. Bxa3 {[%clk 0:01:08]}  Rxa3 {[%clk 0:01:27]} 32. Rb8+ {[%clk 0:01:09]}  Kh7 {[%clk 0:01:26]} 33. d6 {[%clk 0:01:10]}  Rxg3 {[%clk 0:01:16]} 34. d7 {[%clk 0:01:09]}  Rh4+ {[%clk 0:01:16]} 35. Kg1 {[%clk 0:01:10]}  Bd4+ {[%clk 0:01:17]} 36. Rxd4 {[%clk 0:01:00]}  Rxd4 {[%clk 0:01:18]} 37. d8=Q {[%clk 0:01:01]}  Rxd8 {[%clk 0:01:18]} 38. Rxd8 {[%clk 0:01:01]}  g5 {[%clk 0:01:18]} 39. Rd6 {[%clk 0:00:58]}  Kg7 {[%clk 0:01:17]} 40. Kf2 {[%clk 0:00:57]}  Rg4 {[%clk 0:01:17]} 41. Ra6 {[%clk 0:00:51]}  f6 {[%clk 0:01:17]} 42. Rb6 {[%clk 0:00:50]}  Rf4+ {[%clk 0:01:17]} 43. Kg3 {[%clk 0:00:47]}  Kg6 {[%clk 0:01:18]} 44. Rb5 {[%clk 0:00:46]}  Kh5 {[%clk 0:01:16]} 45. Rb8 {[%clk 0:00:45]}  Rg4+ {[%clk 0:01:16]} 46. Kf2 {[%clk 0:00:45]}  Ra4 {[%clk 0:01:15]} 47. Kg3 {[%clk 0:00:40]}  Ra3+ {[%clk 0:01:14]} 48. Kf2 {[%clk 0:00:40]}  f5 {[%clk 0:01:15]} 49. Rb2 {[%clk 0:00:26]}  Kg4 {[%clk 0:01:14]} 50. Rc2 {[%clk 0:00:26]}  Ra4 {[%clk 0:01:06]} 51. Rb2 {[%clk 0:00:25]}  Kf4 {[%clk 0:01:05]} 52. g3+ {[%clk 0:00:18]}  Kg4 {[%clk 0:01:05]} 53. Kg2 {[%clk 0:00:19]}  Rc4 {[%clk 0:00:55]} 54. Ra2 {[%clk 0:00:19]}  Rc3 {[%clk 0:00:54]} 55. Ra4+ {[%clk 0:00:18]}  Kh5 {[%clk 0:00:54]} 56. Ra5 {[%clk 0:00:16]}  Rc2+ {[%clk 0:00:53]} 57. Kf3 {[%clk 0:00:14]}  g4+ {[%clk 0:00:53]} 58. Ke3 {[%clk 0:00:13]}  Kg5 {[%clk 0:00:52]} 59. Ra8 {[%clk 0:00:08]}  Rg2 {[%clk 0:00:52]} 60. Rg8+ {[%clk 0:00:07]}  Kf6 {[%clk 0:00:53]} 61. Rf8+ {[%clk 0:00:05]}  Kg6 {[%clk 0:00:53]} 62. Rg8+ {[%clk 0:00:01]}  Kf7 {[%clk 0:00:53]} 63. Rg5 {[%clk 0:00:02]}  Kf6 {[%clk 0:00:53]} 64. Rg8 {[%clk 0:00:00]}  Rxg3+ {[%clk 0:00:53]} 0-1


[Site "https://www.chess.com"]